bitfinex/quotes_BTCUSD_20251019
["timestamp","ask_amount","ask_price","bid_price","bid_amount"]
[1760895207501,3.93200633,109380.0,109370.0,0.01526442]
[1760895207718,4.54577422,109380.0,109370.0,0.01526442]
[1760895210934,4.54736742,109380.0,109370.0,0.01526442]
[1760895213784,4.66380742,109380.0,109370.0,0.01526442]
[1760895216680,1.11644831,109380.0,109370.0,0.01526442]
[1760895216881,1.23284831,109380.0,109370.0,0.01526442]
[1760895217091,1.66217422,109380.0,109370.0,0.01526442]
[1760895217479,1.23125511,109380.0,109370.0,0.01526442]
[1760895217833,1.66217422,109380.0,109370.0,0.01526442]
[1760895218034,1.23125511,109380.0,109370.0,0.01526442]
[1760895218372,0.21334284,109380.0,109370.0,0.01526442]
[1760895218576,0.21334284,109380.0,109370.0,0.01587479]
[1760895218957,0.64426195,109380.0,109370.0,0.01526442]
[1760895219158,0.64326195,109380.0,109370.0,0.01526442]
[1760895219988,0.64326195,109380.0,109370.0,0.19812992]
[1760895220325,0.64126195,109380.0,109370.0,0.19812992]
[1760895222087,0.64126195,109380.0,109370.0,0.01526442]
[1760895227781,0.21034284,109380.0,109370.0,0.19812992]
[1760895227980,0.64126195,109380.0,109370.0,0.19812992]
[1760895228464,0.21034284,109380.0,109370.0,0.01526442]
[1760895228672,0.21034284,109380.0,109370.0,0.19812992]
[1760895230522,0.21034284,109380.0,109370.0,0.01526442]
[1760895231374,0.64126195,109380.0,109370.0,0.01526442]
[1760895231928,0.21034284,109380.0,109370.0,0.01526442]
[1760895232177,0.21034284,109380.0,109370.0,0.19812992]
[1760895233565,0.21034284,109380.0,109370.0,0.01526442]
[1760895234690,0.6412231,109380.0,109370.0,0.01526442]
[1760895235085,1.07210336,109380.0,109370.0,0.01557642]
[1760895235278,0.6412231,109380.0,109370.0,0.01557642]
[1760895235916,1.07210336,109380.0,109370.0,0.01526442]
[1760895237070,1.07210336,109380.0,109370.0,0.16316442]
[1760895237280,1.07210336,109380.0,109370.0,0.27948442]
[1760895239734,1.07210336,109380.0,109370.0,0.16316442]
[1760895241270,4.54269652,109380.0,109370.0,0.16316442]
[1760895242509,5.08989678,109380.0,109370.0,0.16316442]
[1760895242740,5.09089678,109380.0,109370.0,0.16316442]
[1760895243300,5.09189678,109380.0,109370.0,0.16316442]
[1760895243544,4.66101652,109380.0,109370.0,0.16316442]
[1760895244556,4.66260958,109380.0,109370.0,0.16316442]
[1760895244771,3.799256,109380.0,109370.0,0.16316442]
[1760895244946,4.66101652,109380.0,109370.0,0.16316442]
[1760895247725,4.66260958,109380.0,109370.0,0.16316442]
[1760895249660,4.54628958,109380.0,109370.0,0.16316442]
[1760895249875,4.66256958,109380.0,109370.0,0.16316442]
[1760895250079,3.80080906,109380.0,109370.0,0.16316442]
[1760895250272,4.66256958,109380.0,109370.0,0.16316442]
[1760895250425,1.66256958,109380.0,109370.0,0.16316442]
[1760895250631,1.1701073,109380.0,109370.0,0.16316442]
[1760895250841,0.73922704,109380.0,109370.0,0.27944442]
[1760895251281,1.1701073,109380.0,109370.0,0.27944442]
[1760895251485,1.16851424,109380.0,109370.0,0.27944442]
[1760895251854,0.6432231,109380.0,109370.0,0.27944442]
[1760895252043,0.6412231,109380.0,109370.0,0.27944442]
[1760895252993,0.43088026,109380.0,109370.0,0.27944442]
[1760895253187,0.64121912,109380.0,109370.0,0.27944442]
[1760895253658,1.07209938,109380.0,109370.0,0.27944442]
[1760895254300,0.64121912,109380.0,109370.0,0.27944442]
[1760895254634,0.45837034,109380.0,109370.0,0.46230992]
[1760895254834,0.64121912,109380.0,109370.0,0.46230992]
[1760895255417,0.45837034,109380.0,109370.0,0.46230992]
[1760895256044,0.45841034,109380.0,109370.0,0.46230992]
[1760895256998,4e-05,109380.0,109370.0,0.46230992]
[1760895259138,4e-05,109380.0,109370.0,0.31440992]
[1760895259338,4e-05,109380.0,109370.0,0.46230992]
[1760895260455,4e-05,109380.0,109370.0,0.46330992]
[1760895262121,0.48662281,109390.0,109380.0,0.18284878]
[1760895262442,0.48662281,109390.0,109380.0,0.00479155]
[1760895262835,0.48662281,109390.0,109380.0,0.15269155]
[1760895264416,0.48662281,109390.0,109380.0,0.33554033]
[1760895264623,0.18283516,109390.0,109380.0,0.33074878]
[1760895264822,0.61371542,109390.0,109380.0,0.33074878]
[1760895265028,0.43088026,109390.0,109380.0,0.33074878]
[1760895265479,0.61371232,109390.0,109380.0,0.33074878]
[1760895265659,0.61371232,109390.0,109380.0,0.1479]
[1760895265865,0.61371232,109390.0,109380.0,0.33558857]
[1760895266069,0.61371232,109390.0,109380.0,0.33074878]
[1760895267234,0.6411986,109390.0,109380.0,0.33074878]
[1760895267881,0.64154585,109390.0,109380.0,0.33074878]
[1760895269602,0.21066559,109390.0,109380.0,0.33074878]
[1760895269820,0.64154585,109390.0,109380.0,0.32074878]
[1760895270247,0.45871379,109390.0,109380.0,0.32074878]
[1760895270780,0.02783353,109390.0,109380.0,0.32074878]
[1760895270986,0.00034725,109390.0,109380.0,0.32074878]
[1760895280331,0.00034725,109390.0,109380.0,0.41515966]
[1760895281666,0.00034725,109390.0,109380.0,0.41615966]
[1760895282452,0.00034725,109390.0,109380.0,1.00065966]
[1760895282879,0.00034725,109390.0,109380.0,1.02813833]
[1760895283325,0.00034725,109390.0,109380.0,1.02713833]
[1760895283733,0.00034725,109390.0,109380.0,1.02813833]
[1760895285129,0.00034725,109390.0,109380.0,1.02913833]
[1760895286504,0.00034725,109390.0,109380.0,1.03541275]
[1760895288085,0.00034725,109390.0,109380.0,1.07159503]
[1760895294074,0.00034725,109390.0,109380.0,1.08993503]
[1760895294280,0.00034725,109390.0,109380.0,1.07159503]
[1760895296846,0.00034725,109390.0,109380.0,1.08058503]
[1760895298553,0.21242186,109430.0,109420.0,0.31969469]
[1760895298753,0.21291442,109430.0,109420.0,0.29886194]
[1760895299121,0.21430284,109430.0,109420.0,0.29886194]
[1760895301518,0.18279864,109410.0,109400.0,0.1479]
[1760895301720,0.18279864,109410.0,109380.0,0.01526442]
[1760895301721,0.18283206,109390.0,109380.0,0.01526442]
[1760895301863,0.20209533,109390.0,109380.0,0.13130442]
[1760895302063,0.66005467,109390.0,109380.0,0.13130442]
[1760895302314,0.6407914,109390.0,109380.0,0.13130442]
[1760895302878,0.6407914,109390.0,109380.0,0.13144087]
[1760895303085,0.6407914,109390.0,109380.0,0.01540087]
[1760895304399,0.21031821,109390.0,109380.0,0.01540087]
[1760895307317,0.21031821,109390.0,109380.0,0.16330087]
[1760895308162,0.6407914,109390.0,109380.0,0.16330087]
[1760895309562,1.11138456,109390.0,109380.0,0.01540087]
[1760895309781,4.11138456,109390.0,109380.0,0.01540087]
[1760895310750,3.68091137,109390.0,109380.0,0.01540087]
[1760895310937,4.11338456,109390.0,109380.0,0.01540087]
[1760895312997,4.1149774,109390.0,109380.0,0.01540087]
[1760895315362,4.11338456,109390.0,109380.0,0.01540087]
[1760895315605,4.11338456,109390.0,109380.0,0.16330087]
[1760895317406,1.07720228,109390.0,109380.0,0.16330087]
[1760895317610,0.21231821,109390.0,109380.0,0.34614965]
[1760895318033,0.21231821,109390.0,109380.0,0.46218965]
[1760895318243,0.02948615,109390.0,109380.0,0.46218965]
[1760895318776,0.02848615,109390.0,109380.0,0.46218965]
[1760895318996,0.22848615,109390.0,109380.0,0.46218965]
[1760895319177,0.22748615,109390.0,109380.0,0.46218965]
[1760895320483,0.2,109390.0,109380.0,0.46218965]
[1760895323981,0.38283206,109390.0,109380.0,0.46218965]
[1760895324281,0.2,109390.0,109380.0,0.46218965]
[1760895324986,0.66540525,109390.0,109380.0,0.13144087]
[1760895325223,0.66540525,109390.0,109380.0,0.13140087]
[1760895325423,0.69289203,109390.0,109380.0,0.13140087]
[1760895325746,0.69289203,109390.0,109380.0,0.31424965]
[1760895326353,0.66540525,109390.0,109380.0,0.31424965]
[1760895326770,0.66540525,109390.0,109380.0,0.13140087]
[1760895328071,0.66540525,109390.0,109380.0,0.01540087]
[1760895329469,0.66640525,109390.0,109380.0,0.01540087]
[1760895330600,0.66740525,109390.0,109380.0,0.01540087]
[1760895330804,0.66740525,109390.0,109380.0,0.16330087]
[1760895333667,0.76181613,109390.0,109380.0,0.16330087]
[1760895335317,4.13799841,109390.0,109380.0,0.16330087]
[1760895335824,4.16548917,109390.0,109380.0,0.16330087]
[1760895336001,3.73501598,109390.0,109380.0,0.16330087]
[1760895336174,0.0541,109390.0,109380.0,0.34614965]
[1760895336379,0.25619533,109390.0,109380.0,0.46210965]
[1760895336621,0.23693206,109390.0,109380.0,0.46210965]
[1760895337404,0.23593206,109390.0,109380.0,0.46210965]
[1760895337616,0.23493206,109390.0,109380.0,0.46210965]
[1760895338224,0.66540525,109390.0,109380.0,0.27926087]
[1760895338423,0.66540525,109390.0,109380.0,0.16330087]
[1760895338746,3.66540525,109390.0,109380.0,0.16330087]
[1760895338947,4.00540525,109390.0,109380.0,0.16330087]
[1760895339559,4.13599841,109390.0,109380.0,0.16330087]
[1760895339977,4.13759125,109390.0,109380.0,0.16330087]
[1760895340832,4.13859125,109390.0,109380.0,0.16330087]
[1760895340987,4.13959125,109390.0,109380.0,0.16330087]
[1760895344058,4.13799841,109390.0,109380.0,0.16330087]
[1760895345042,4.16548917,109390.0,109380.0,0.16330087]
[1760895347188,4.167082,109390.0,109380.0,0.16330087]
[1760895355114,3.73660881,109390.0,109380.0,0.16330087]
[1760895355317,4.167082,109390.0,109380.0,0.16330087]
[1760895356171,4.16548917,109390.0,109380.0,0.16330087]
[1760895358846,4.59692756,109390.0,109380.0,0.16330087]
[1760895359962,4.59852041,109390.0,109380.0,0.16330087]
[1760895362365,4.62921154,109390.0,109380.0,0.01540087]
[1760895363738,4.59852041,109390.0,109380.0,0.01540087]
[1760895363939,4.71444041,109390.0,109380.0,0.01540087]
[1760895364575,4.59852041,109390.0,109380.0,0.01540087]
[1760895364782,4.71444041,109390.0,109380.0,0.01540087]
[1760895366873,4.54642041,109390.0,109380.0,0.01540087]
[1760895367079,4.66234041,109390.0,109380.0,0.01540087]
[1760895368297,4.67948572,109390.0,109380.0,0.01540087]
[1760895368491,5.11901434,109390.0,109380.0,1e-08]
[1760895368699,5.15811261,109390.0,109380.0,1e-08]
[1760895369559,5.15611261,109390.0,109380.0,1e-08]
[1760895369720,5.15811261,109390.0,109380.0,1e-08]
[1760895369926,5.15911261,109390.0,109380.0,1e-08]
[1760895370565,5.14911262,109390.0,109380.0,1e-08]
[1760895370841,5.15911261,109390.0,109380.0,1e-08]
[1760895371436,5.14911262,109390.0,109380.0,1e-08]
[1760895371825,5.24351904,109390.0,109380.0,1e-08]
[1760895372249,5.14911262,109390.0,109380.0,1e-08]
[1760895373026,5.15070563,109390.0,109380.0,1e-08]
[1760895375418,5.14911262,109390.0,109380.0,1e-08]
[1760895375971,6.46197997,109390.0,109380.0,1e-08]
[1760895378223,6.46357316,109390.0,109380.0,1e-08]
[1760895378424,6.55797958,109390.0,109380.0,1e-08]
[1760895378629,0.1829324,109330.0,109320.0,0.18676849]
[1760895378823,0.61388819,109330.0,109320.0,0.18691622]
[1760895379265,0.61388819,109330.0,109320.0,0.18830631]
[1760895379484,0.62936479,109330.0,109320.0,0.18830631]
[1760895379893,0.62936479,109330.0,109320.0,0.00153782]
[1760895380100,1.06032058,109330.0,109320.0,0.00153782]
[1760895380576,4.64679374,109330.0,109320.0,0.00153782]
[1760895380972,4.64679374,109330.0,109320.0,0.00253782]
[1760895381406,4.64679374,109330.0,109320.0,0.00153782]
[1760895383843,4.66387806,109330.0,109320.0,0.00153782]
[1760895385498,4.54799806,109330.0,109320.0,0.00153782]
[1760895385692,4.66387806,109330.0,109320.0,0.00153782]
[1760895388873,4.66385958,109330.0,109320.0,0.00153782]
[1760895389259,0.18297533,109310.0,109290.0,0.34000222]
[1760895389503,0.43095579,109300.0,109290.0,0.58464902]
[1760895391919,0.61493112,109310.0,109290.0,0.58464902]
[1760895392068,0.61393112,109310.0,109300.0,0.18298261]
[1760895393609,0.61493112,109310.0,109300.0,0.18298261]
[1760895394886,0.61493112,109310.0,109300.0,0.18367791]
[1760895395237,0.61493112,109310.0,109300.0,0.33157791]
[1760895395826,0.43195579,109310.0,109300.0,0.33157791]
[1760895396190,0.61492166,109310.0,109300.0,0.33157791]
[1760895396543,0.61492166,109310.0,109300.0,0.33877791]
[1760895399471,0.18396587,109310.0,109300.0,0.33877791]
[1760895399615,0.61492166,109310.0,109300.0,0.33877791]
[1760895400972,0.001,109310.0,109300.0,0.33877791]
[1760895401172,0.0154766,109330.0,109320.0,0.32984914]
[1760895401374,0.0275021,109330.0,109320.0,0.32984914]
[1760895401578,0.55979331,109340.0,109320.0,0.32984914]
[1760895401783,0.34338651,109340.0,109330.0,0.1829324]
[1760895401980,0.39338364,109340.0,109330.0,0.1829324]
[1760895402211,0.35720136,109340.0,109330.0,0.1829324]
[1760895402500,0.82433943,109340.0,109330.0,0.1829324]
[1760895402986,0.82433943,109340.0,109330.0,0.1830792]
[1760895403148,0.82533943,109340.0,109330.0,0.1830792]
[1760895404561,0.39438364,109340.0,109330.0,0.1830792]
[1760895405413,0.09558633,109340.0,109330.0,0.1830792]
[1760895405618,0.08734972,109340.0,109330.0,0.1830792]
[1760895406043,0.27026539,109340.0,109330.0,0.1830792]
[1760895406241,0.25100212,109340.0,109330.0,0.1830792]
[1760895406442,0.2339128,109340.0,109330.0,0.1830792]
[1760895407026,0.2339528,109340.0,109330.0,0.3299792]
[1760895407777,0.01485485,109340.0,109330.0,0.3299792]
[1760895407999,0.00104,109340.0,109330.0,0.4458592]
[1760895408196,0.0376094,109350.0,109340.0,0.32877567]
[1760895408352,0.0547158,109350.0,109340.0,0.32877567]
[1760895408518,0.06857698,109350.0,109340.0,0.32877567]
[1760895408819,0.00142712,109350.0,109340.0,0.32877567]
[1760895410814,0.00242712,109350.0,109340.0,0.32877567]
[1760895411514,0.00142712,109350.0,109340.0,0.32877567]
[1760895411716,0.00146712,109350.0,109340.0,0.32877567]
[1760895415662,0.19681207,109360.0,109350.0,0.32729182]
[1760895416043,0.23299435,109360.0,109350.0,0.41933182]
[1760895416244,0.23334174,109360.0,109350.0,0.41933182]
[1760895416852,0.23434174,109360.0,109350.0,0.41933182]
[1760895420334,0.66535078,109360.0,109350.0,0.41933182]
[1760895420755,0.23434174,109360.0,109350.0,0.41933182]
[1760895420975,0.665374,109360.0,109350.0,0.23643288]
[1760895421582,0.23434174,109360.0,109350.0,0.26023288]
[1760895422629,0.23438174,109360.0,109350.0,0.26023288]
[1760895422980,0.665414,109360.0,109350.0,0.26023288]
[1760895423567,1.64665714,109360.0,109350.0,0.14439288]
[1760895423705,4.67734827,109360.0,109350.0,0.14439288]
[1760895423902,4.70484755,109360.0,109350.0,0.14439288]
[1760895424135,4.29088269,109360.0,109350.0,0.14439288]
[1760895424333,4.26019156,109360.0,109350.0,0.14439288]
[1760895426658,4.26178484,109360.0,109350.0,0.14439288]
[1760895428282,4.26019156,109360.0,109350.0,0.14439288]
[1760895431488,4.26178486,109360.0,109350.0,0.14439288]
[1760895433041,4.26183284,109360.0,109350.0,0.14439288]
[1760895433850,4.06502077,109360.0,109350.0,0.14439288]
[1760895434080,4.24790419,109360.0,109350.0,0.14439288]
[1760895436425,4.26198633,109360.0,109350.0,0.15169288]
[1760895436612,4.69301859,109360.0,109350.0,0.15169288]
[1760895437328,4.72370972,109360.0,109350.0,0.15169288]
[1760895438046,4.54082793,109360.0,109350.0,0.15169288]
[1760895439051,4.54182793,109360.0,109350.0,0.15169288]
[1760895439982,4.54282793,109360.0,109350.0,0.15169288]
[1760895440184,4.57901021,109360.0,109350.0,0.15169288]
[1760895441106,4.592349,109360.0,109350.0,0.15169288]
[1760895441283,4.5907557,109360.0,109350.0,0.15169288]
[1760895442507,4.60439248,109360.0,109350.0,0.15169288]
[1760895443883,4.5907557,109360.0,109350.0,0.15169288]
[1760895444312,4.56165804,109360.0,109350.0,0.15169288]
[1760895444498,4.44585804,109360.0,109350.0,0.15169288]
[1760895444656,4.00467381,109360.0,109350.0,0.15169288]
[1760895444863,4.12043381,109360.0,109350.0,0.15169288]
[1760895447629,4.00467381,109360.0,109350.0,0.15169288]
[1760895447804,4.12043381,109360.0,109350.0,0.15169288]
[1760895448603,4.55146607,109360.0,109350.0,0.15169288]
[1760895449014,4.55305944,109360.0,109350.0,0.15169288]
[1760895458693,4.561632,109360.0,109350.0,0.15169288]
[1760895459547,4.59232313,109360.0,109350.0,0.15169288]
[1760895459856,4.59072976,109360.0,109350.0,0.15169288]
[1760895464086,4.59232321,109360.0,109350.0,0.15169288]
[1760895464666,4.59072976,109360.0,109350.0,0.15169288]
[1760895467682,4.59232321,109360.0,109350.0,0.15169288]
[1760895474072,4.47656321,109360.0,109350.0,0.15169288]
[1760895474866,4.59228321,109360.0,109350.0,0.15169288]
[1760895475357,3.21909795,109340.0,109330.0,0.0001468]
[1760895475563,3.87737647,109340.0,109330.0,0.0001468]
[1760895475931,3.90647275,109340.0,109330.0,0.0001468]
[1760895477797,3.90747275,109340.0,109330.0,0.0001468]
[1760895479134,3.90847275,109340.0,109330.0,0.0001468]
[1760895480275,3.90847275,109340.0,109330.0,0.1480468]
[1760895482847,4.34011157,109340.0,109330.0,0.1480468]
[1760895483517,4.34015157,109340.0,109330.0,0.1480468]
[1760895484016,4.22443157,109340.0,109330.0,0.1480468]
[1760895484208,4.34015157,109340.0,109330.0,0.1480468]
[1760895487805,4.33855812,109340.0,109330.0,0.1480468]
[1760895494432,3.47588704,109340.0,109330.0,0.1480468]
[1760895494671,4.33855812,109340.0,109330.0,0.1480468]
[1760895495076,3.47588704,109340.0,109330.0,0.1480468]
[1760895495263,4.33855812,109340.0,109330.0,0.1480468]
[1760895498961,4.34015158,109340.0,109330.0,0.1480468]
[1760895500568,4.3230362,109340.0,109330.0,0.1480468]
[1760895501186,3.47753284,109340.0,109330.0,0.1480468]
[1760895501415,4.34020392,109340.0,109330.0,0.1480468]
[1760895501551,4.3230362,109340.0,109330.0,0.1480468]
[1760895501757,4.34020387,109340.0,109330.0,0.1480468]
[1760895501958,4.3230362,109340.0,109330.0,0.1480468]
[1760895502224,4.86594583,109340.0,109330.0,0.1480468]
[1760895502349,4.86594583,109340.0,109330.0,0.0001468]
[1760895502350,5.25656895,109340.0,109330.0,0.0001468]
[1760895502551,4.65729683,109340.0,109330.0,0.0001468]
[1760895502757,4.66140274,109340.0,109330.0,0.0001468]
[1760895503311,4.54572274,109340.0,109330.0,0.0001468]
[1760895503466,4.67757185,109340.0,109330.0,0.0001468]
[1760895503881,4.67957185,109340.0,109330.0,0.0001468]
[1760895504363,4.67757185,109340.0,109330.0,0.0001468]
[1760895505034,4.67857185,109340.0,109330.0,0.0001468]
[1760895505409,4.67757185,109340.0,109330.0,0.0001468]
[1760895505828,4.67857185,109340.0,109330.0,0.0001468]
[1760895506028,5.10990739,109340.0,109330.0,0.0001468]
[1760895506878,4.99422739,109340.0,109330.0,0.0001468]
[1760895507085,5.10990739,109340.0,109330.0,0.0001468]
[1760895510022,5.11150098,109340.0,109330.0,0.0001468]
[1760895510214,4.68016544,109340.0,109330.0,0.0001468]
[1760895510444,4.56448544,109340.0,109330.0,0.0001468]
[1760895510633,4.68016544,109340.0,109330.0,0.0001468]
[1760895511767,4.56448544,109340.0,109330.0,0.1480468]
[1760895511964,4.68016544,109340.0,109330.0,0.1480468]
[1760895513639,4.67857185,109340.0,109330.0,0.1480468]
[1760895516416,4.67348306,109340.0,109330.0,0.1480468]
[1760895516828,4.67507658,109340.0,109330.0,0.1480468]
[1760895519626,5.10641212,109340.0,109330.0,0.1480468]
[1760895524971,4.67507658,109340.0,109330.0,0.1480468]
[1760895525769,4.67348306,109340.0,109330.0,0.1480468]
[1760895531625,4.55780306,109340.0,109330.0,0.1480468]
[1760895531832,4.67344306,109340.0,109330.0,0.1480468]
[1760895533957,3.66403849,109340.0,109330.0,0.1480468]
[1760895534186,4.52670957,109340.0,109330.0,0.1480468]
[1760895534398,4.64234957,109340.0,109330.0,0.1480468]
[1760895534906,4.64134957,109340.0,109330.0,0.1480468]
[1760895535502,4.64234957,109340.0,109330.0,0.1480468]
[1760895536409,4.44982048,109340.0,109330.0,0.1480468]
[1760895536610,4.64234957,109340.0,109330.0,0.1480468]
[1760895537908,3.77967849,109340.0,109330.0,0.1480468]
[1760895538093,1.62518046,109340.0,109330.0,0.1480468]
[1760895542848,1.19384041,109340.0,109330.0,0.1480468]
[1760895553173,1.07820041,109340.0,109330.0,0.1480468]
[1760895555112,0.02954283,109340.0,109330.0,0.3309792]
[1760895555326,0.63554997,109340.0,109330.0,0.1480468]
[1760895555533,0.6162867,109340.0,109330.0,0.1480468]
[1760895555852,0.9562867,109340.0,109330.0,0.1480468]
[1760895556344,0.9542867,109340.0,109330.0,0.1480468]
[1760895556497,0.52295567,109340.0,109330.0,0.1480468]
[1760895556701,0.9542867,109340.0,109330.0,0.1480468]
[1760895557105,0.9542867,109340.0,109330.0,0.3309792]
[1760895559124,0.9542867,109340.0,109330.0,0.1480468]
[1760895559321,0.77133103,109340.0,109330.0,0.1480468]
[1760895559564,0.9542467,109340.0,109330.0,0.1480468]
[1760895561203,1.04865758,109340.0,109330.0,0.1480468]
[1760895561828,1.07616006,109340.0,109330.0,0.1480468]
[1760895562035,1.07775348,109340.0,109330.0,0.1480468]
[1760895562810,1.07875348,109340.0,109330.0,0.1480468]
[1760895563017,1.07975348,109340.0,109330.0,0.1480468]
[1760895563216,1.07875348,109340.0,109330.0,0.1480468]
[1760895563728,1.08075348,109340.0,109330.0,0.1480468]
[1760895565930,4.08075348,109340.0,109330.0,0.1480468]
[1760895577917,4.56542353,109340.0,109330.0,0.1480468]
[1760895578121,3.55911468,109330.0,109320.0,0.00142731]
[1760895578322,4.64890436,109330.0,109320.0,0.00157457]
[1760895578470,4.67959549,109330.0,109320.0,0.00157457]
[1760895578671,4.68816898,109330.0,109320.0,0.00157457]
[1760895578908,4.71160706,109330.0,109320.0,0.00157457]
[1760895579261,4.74011701,109330.0,109320.0,0.00157457]
[1760895579464,0.61431364,109300.0,109290.0,0.1479]
[1760895579635,0.82428452,109300.0,109290.0,0.1480473]
[1760895580165,0.85179631,109300.0,109290.0,0.14943785]
[1760895581088,0.73623631,109300.0,109290.0,0.14943785]
[1760895581361,1.19179631,109300.0,109290.0,0.00153785]
[1760895581567,4.19179631,109300.0,109290.0,0.00153785]
[1760895582078,4.22797859,109300.0,109290.0,0.00153785]
[1760895582283,4.65930962,109300.0,109290.0,0.00153785]
[1760895582510,4.22957256,109300.0,109290.0,0.00153785]
[1760895583652,4.23057256,109300.0,109290.0,0.00153785]
[1760895590350,4.24763317,109300.0,109290.0,0.00153785]
[1760895590952,4.13207317,109300.0,109290.0,0.00153785]
[1760895591276,4.23057256,109300.0,109290.0,0.00153785]
[1760895591482,4.11501256,109300.0,109290.0,0.00153785]
[1760895591698,4.23057256,109300.0,109290.0,0.00153785]
[1760895593384,4.24763189,109300.0,109290.0,0.14943785]
[1760895593559,4.13207189,109300.0,109290.0,0.14943785]
[1760895593937,4.24763189,109300.0,109290.0,0.14943785]
[1760895594692,4.13207189,109300.0,109290.0,0.14943785]
[1760895594901,4.24763189,109300.0,109290.0,0.14943785]
[1760895595364,4.13207189,109300.0,109290.0,0.14943785]
[1760895595541,4.24763189,109300.0,109290.0,0.14943785]
[1760895596360,4.13207189,109300.0,109290.0,0.14943785]
[1760895596519,4.24763189,109300.0,109290.0,0.14943785]
[1760895597150,4.13207189,109300.0,109290.0,0.14943785]
[1760895597498,4.24763189,109300.0,109290.0,0.14943785]
[1760895598032,4.13207189,109300.0,109290.0,0.14943785]
[1760895598252,1.19439028,109300.0,109290.0,0.14943785]
[1760895598688,4.20986403,109300.0,109290.0,0.14943785]
[1760895601984,4.20966403,109300.0,109290.0,0.14943785]
[1760895602601,4.09410403,109300.0,109290.0,0.14943785]
[1760895602802,4.64157136,109300.0,109290.0,0.14943785]
[1760895605702,4.64177136,109300.0,109290.0,0.14943785]
[1760895607457,4.65034563,109300.0,109290.0,0.14943785]
[1760895607619,4.68652791,109300.0,109290.0,0.14943785]
[1760895610942,5.11814709,109300.0,109290.0,0.14943785]
[1760895611249,5.11974126,109300.0,109290.0,0.14943785]
[1760895611455,4.68812208,109300.0,109290.0,0.14943785]
[1760895613463,4.68652791,109300.0,109290.0,0.14943785]
[1760895618013,4.68812208,109300.0,109290.0,0.14943785]
[1760895618548,5.11974126,109300.0,109290.0,0.14943785]
[1760895618895,5.11983791,109300.0,109290.0,0.14943785]
[1760895626138,3.82498037,109300.0,109290.0,0.14943785]
[1760895626315,4.68821873,109300.0,109290.0,0.14943785]
[1760895626915,4.68662456,109300.0,109290.0,0.14943785]
[1760895627237,4.57106456,109300.0,109290.0,0.14943785]
[1760895627395,4.68658456,109300.0,109290.0,0.14943785]
[1760895629494,4.56466189,109300.0,109290.0,0.14943785]
[1760895629694,4.58135448,109300.0,109290.0,0.16223785]
[1760895629947,4.60887015,109300.0,109290.0,0.16223785]
[1760895631300,4.60029588,109300.0,109290.0,0.16223785]
[1760895631439,4.5639136,109300.0,109290.0,0.16223785]
[1760895631644,1.5639136,109300.0,109290.0,0.16223785]
[1760895632050,4.5639136,109300.0,109290.0,0.16223785]
[1760895637505,4.5639246,109300.0,109290.0,0.16223785]
[1760895641963,5.03172606,109300.0,109290.0,0.16223785]
[1760895642170,5.04031417,109300.0,109290.0,0.16223785]
[1760895642575,5.03172606,109300.0,109290.0,0.16223785]
[1760895643173,5.04031421,109300.0,109290.0,0.16223785]
[1760895646694,5.04190839,109300.0,109290.0,0.16223785]
[1760895647521,5.06563911,109300.0,109290.0,0.16223785]
[1760895647664,5.09633024,109300.0,109290.0,0.16223785]
[1760895647892,5.10111323,109300.0,109290.0,0.16223785]
[1760895648103,0.1830161,109280.0,109270.0,0.1483]
[1760895648299,5.10042544,109280.0,109270.0,0.14879411]
[1760895648523,5.08116217,109280.0,109270.0,0.14879411]
[1760895648741,5.10868234,109280.0,109270.0,0.00089411]
[1760895648925,5.11726798,109280.0,109270.0,0.00089411]
[1760895650047,5.10868234,109280.0,109270.0,0.00089411]
[1760895651919,5.10968234,109280.0,109270.0,0.00089411]
[1760895653087,5.11127674,109280.0,109270.0,0.00089411]
[1760895653303,5.13818524,109280.0,109270.0,0.00089411]
[1760895653880,5.13818524,109280.0,109270.0,0.00158969]
[1760895655663,5.13808524,109280.0,109270.0,0.00158969]
[1760895656242,5.13649084,109280.0,109270.0,0.00158969]
[1760895656486,5.19091269,109280.0,109270.0,0.00158969]
[1760895657042,5.19947984,109280.0,109270.0,0.00158969]
[1760895657374,5.19091269,109280.0,109270.0,0.00158969]
[1760895657717,5.18991269,109280.0,109270.0,0.00158969]
[1760895658243,5.19391269,109280.0,109270.0,0.00158969]
[1760895659211,5.19550715,109280.0,109270.0,0.00158969]
[1760895659860,5.17833178,109280.0,109270.0,0.00158969]
[1760895660094,5.17172777,109280.0,109270.0,0.00158969]
[1760895663037,4.98360105,109280.0,109270.0,0.00158969]
[1760895663247,5.16661715,109280.0,109270.0,0.00158969]
[1760895664722,4.30370828,109280.0,109270.0,0.00158969]
[1760895668002,4.30370601,109280.0,109270.0,0.00158969]
[1760895670782,4.7593854,109280.0,109270.0,0.00158969]
[1760895670984,4.76795024,109280.0,109270.0,0.00158969]
[1760895673054,4.7508258,109280.0,109270.0,0.00158969]
[1760895673245,4.76796125,109280.0,109270.0,0.00158969]
[1760895675198,4.85031364,109280.0,109270.0,0.00158969]
[1760895675654,4.84871918,109280.0,109270.0,0.00158969]
[1760895676370,4.76636679,109280.0,109270.0,0.00158969]
[1760895678038,0.18303285,109270.0,109260.0,0.0004]
[1760895678212,4.55003535,109270.0,109260.0,0.00054777]
[1760895678413,4.59764549,109270.0,109260.0,1e-08]
[1760895678564,4.69364655,109270.0,109260.0,1e-08]
[1760895678759,4.69731693,109270.0,109260.0,1e-08]
[1760895679315,4.69831693,109270.0,109260.0,1e-08]
[1760895680228,4.70831692,109270.0,109260.0,1e-08]
[1760895680429,3.55923188,109260.0,109250.0,1e-08]
[1760895680667,4.71318224,109260.0,109250.0,0.00014791]
[1760895681002,4.71685287,109260.0,109250.0,0.00014791]
[1760895681974,4.80170699,109260.0,109250.0,0.00014791]
[1760895682248,4.77897627,109260.0,109250.0,0.00014791]
[1760895683216,4.80270699,109260.0,109250.0,0.00014791]
[1760895683757,4.7151001,109260.0,109250.0,1e-08]
[1760895683965,5.13331804,109260.0,109250.0,1e-08]
[1760895684173,5.15704876,109260.0,109250.0,0.00069579]
[1760895684509,5.15704876,109260.0,109250.0,1e-08]
[1760895684706,3.54679707,109250.0,109240.0,0.0004]
[1760895684911,4.65590313,109250.0,109240.0,0.00054802]
[1760895685331,4.6834362,109250.0,109240.0,0.00054802]
[1760895685806,4.71961848,109250.0,109240.0,0.00054802]
[1760895686426,4.72061848,109250.0,109240.0,0.00054802]
[1760895686590,4.72161848,109250.0,109240.0,0.00054802]
[1760895690592,4.7232134,109250.0,109240.0,0.00089597]
[1760895692439,4.73321339,109250.0,109240.0,1e-08]
[1760895692637,4.74321338,109250.0,109240.0,1e-08]
[1760895693178,4.74161846,109250.0,109240.0,1e-08]
[1760895693380,4.73061847,109250.0,109240.0,1e-08]
[1760895693594,4.74261846,109250.0,109240.0,1e-08]
[1760895693795,4.74161846,109250.0,109240.0,1e-08]
[1760895694196,4.73361847,109250.0,109240.0,1e-08]
[1760895694541,4.74361846,109250.0,109240.0,1e-08]
[1760895696443,4.73361847,109250.0,109240.0,1e-08]
[1760895697386,4.73365847,109250.0,109240.0,1e-08]
[1760895698016,4.73362464,109250.0,109240.0,1e-08]